Cogmind - Beta 10.1 @@@ ROGUE MODE // 2020.09.30 @ 02:06:47 Player: RAT Result: Destroyed by G-47 Trooper with Particle Gun Performance ------------- Evolutions (2) 1000 Regions Visited (5) 1000 Robots Destroyed (4) 20 Value Destroyed (207) 207 Prototype IDs (0) 0 Alien Tech Used (0) 0 Bonus (270) 270 TOTAL SCORE: 2497 Bonus ------- Pacifist 270 Cogmind --------- Core Integrity 0/550 Matter 275/300 Energy 81/100 System Corruption 0% Temperature Cool (19) Movement Walking (120) Location -8/Materials Parts ------- > --- POWER (1) -------- (None) > --- PROPULSION (3) --- Aluminum Leg > --- UTILITY (3) ------ (None) > --- WEAPON (4) ------- (None) > --- INVENTORY (4) ---- Humpback Peak State ------------ > --- POWER ------------ Light Ion Engine > --- PROPULSION ------- Light Treads Light Treads > --- UTILITY ---------- Humpback > --- WEAPON ----------- Assault Rifle Light Assault Rifle Rocket Launcher > --- INVENTORY -------- Aluminum Leg Aluminum Leg Humpback [Rating: 9] Favorites ----------- Power Light Ion Engine Engine Light Ion Engine Propulsion Light Treads Treads Light Treads Leg Aluminum Leg Utility Humpback Storage Humpback Protection Light Armor Plating Weapon Assault Rifle Energy Gun EM Pulse Gun Ballistic Gun Assault Rifle Launcher Rocket Launcher Build | -11 -10 -10 -10 -9 -8 ------- Run | Scr Mat Min Exi Min Mat Slots Evolved 4 | . . . . . 4 Power . | . . . . . . Propulsion 1 | . . . . . 1 Utility 1 | . . . . . 1 Weapon 2 | . . . . . 2 Parts Attached 14 | 6 2 1 2 . 3 Power 1 | 1 . . . . . Engine 1 | 1 . . . . . Core . | . . . . . . Reactor . | . . . . . . Propulsion 4 | 2 . . . . 2 Treads 2 | 2 . . . . . Leg 2 | . . . . . 2 Wheel . | . . . . . . Hover . | . . . . . . Flight . | . . . . . . Utility 5 | 1 1 1 2 . . Device . | . . . . . . Storage 4 | 1 . 1 2 . . Processor . | . . . . . . Hackware . | . . . . . . Protection 1 | . 1 . . . . Artifact . | . . . . . . Weapon 4 | 2 1 . . . 1 Energy Gun 1 | 1 . . . . . Energy Cannon . | . . . . . . Ballistic Gun 2 | 1 1 . . . . Ballistic Cannon . | . . . . . . Launcher 1 | . . . . . 1 Special Weapon . | . . . . . . Impact Weapon . | . . . . . . Slashing Weapon . | . . . . . . Piercing Weapon . | . . . . . . Special Melee Weapon . | . . . . . . Unidentified Prototypes . | . . . . . . Parts Lost 8 | . . . . . 8 Power 1 | . . . . . 1 Propulsion 3 | . . . . . 3 Utility 1 | . . . . . 1 Weapon 3 | . . . . . 3 Highest Loss Streak 8 | . . . . . 8 Average Slot Usage (%) 87 | . 91 100 90 85 47 Engine 13 | . 14 14 14 14 8 Treads 26 | . 28 28 28 28 13 Storage 13 | . 14 14 14 14 8 Protection 4 | . 6 14 5 . . Ballistic Gun 26 | . 28 28 28 28 12 Naked Turns 6 | . . . . . 6 Heaviest Build 90 | 11 13 17 86 86 90 Greatest Support 40 | 40 40 40 40 40 40 Greatest Overweight (x) 27 | . . . 2 2 27 Average Overweight (x) 1 | . . . 1 2 2 Largest Inventory Capacity 24 | 6 6 8 24 24 24 Average Capacity 16 | 5 6 7 17 24 21 Most Carried 6 | 4 5 5 6 5 4 Average Carried 3 | 3 4 4 3 4 3 Final Capacity 24 | 6 6 8 24 24 4 Final Carried 5 | 4 4 4 4 5 2 Class Distribution -------------------- 52% | Hauler-Mutant 43% | Mutant 3% | Hauler-Gunner Dominant Class ---------------- Mutant | -10/Materials Mutant | -10/Mines Hauler-Mutant | -10/Exiles Hauler-Mutant | -9/Mines Hauler-Gunner | -8/Materials Resources | -11 -10 -10 -10 -9 -8 ----------- Run | Scr Mat Min Exi Min Mat Matter Collected 366 | 227 . 64 . 49 26 Remotely . | . . . . . . Salvage Created 163 | . . . . . 163 Parts 7 | . . . . . 7 Haulers Intercepted . | . . . . . . Recyclers Shooed . | . . . . . . Parts Field Recycled . | . . . . . . Retrieved Matter . | . . . . . . Parts Self-Destructed . | . . . . . . Prevented . | . . . . . . Kills | -11 -10 -10 -10 -9 -8 ------- Run | Scr Mat Min Exi Min Mat Combat Hostiles Destroyed 3 | . . . . . 3 AOE 3 | . . . . . 3 Classes Destroyed 2 | . . . . . 2 Recycler 1 | . . . . . 1 Grunt 3 | . . . . . 3 Best Kill Streak 4 | . . . . . 4 Combat Bots Only 3 | . . . . . 3 Max Kills in Single Turn 2 | . . . . . 2 Gunslinging . | . . . . . . Exploded 2 | . . . . . 2 Melee . | . . . . . . Uniques/NPCs Destroyed . | . . . . . . Combat | -11 -10 -10 -10 -9 -8 -------- Run | Scr Mat Min Exi Min Mat Damage Taken 1706 | . . 17 . . 1689 Core 560 | . . . . . 560 Absorbed by Shields . | . . . . . . Core Remaining (%) 100 | 100 . . . 100 . Volleys Fired 7 | . . 1 . . 6 Largest 3 | . . 2 . . 3 Hottest 73 | . . 40 . . 73 Shots Fired 13 | . . 2 . . 11 Gun 10 | . . 2 . . 8 Cannon . | . . . . . . Launcher 3 | . . . . . 3 Special . | . . . . . . Kinetic 10 | . . 2 . . 8 Thermal . | . . . . . . Explosive 3 | . . . . . 3 Electromagnetic . | . . . . . . Robot Hit Streak 4 | . . 1 . . 4 Robot Miss Streak 2 | . . 1 . . 2 Penetration Max . | . . . . . . Secondary Targets . | . . . . . . Shots Hit Robots 9 | . . 1 . . 8 Core Hits 13 | . . . . . 13 Critical Hits . | . . . . . . Critical Kills . | . . . . . . Critical Parts Destroyed . | . . . . . . Melee Attacks . | . . . . . . Impact . | . . . . . . Slashing . | . . . . . . Piercing . | . . . . . . Sneak Attacks . | . . . . . . Combat Hostiles . | . . . . . . Follow-up Attacks . | . . . . . . Damage Inflicted 831 | . . . . . 831 Guns 43 | . . . . . 43 Cannons . | . . . . . . Explosions 788 | . . . . . 788 Melee . | . . . . . . Ramming . | . . . . . . Kinetic 43 | . . . . . 43 Thermal 486 | . . . . . 486 Explosive 302 | . . . . . 302 Electromagnetic . | . . . . . . Impact . | . . . . . . Slashing . | . . . . . . Piercing . | . . . . . . Highest Corruption 3 | . 3 3 3 3 . Average Corruption 2 | . 2 3 3 3 . Corruption Purged . | . . . . . . Effects 17 | . 2 4 6 5 . Message Errors 6 | . . 3 1 2 . Matter Fused 6 | . 1 . 4 1 . Heat Flow Errors 3 | . 1 1 . 1 . Energy Discharges 2 | . . . 1 1 . Overload Shots . | . . . . . . Overflow Damage 129 | . . . . . 129 Projectiles . | . . . . . . Explosions 129 | . . . . . 129 Melee . | . . . . . . Knockbacks . | . . . . . . Impact . | . . . . . . Kinetic . | . . . . . . Secondary . | . . . . . . Self-Inflicted Damage 276 | . . . . . 276 Shots 5 | . . . . . 5 Rammed . | . . . . . . Targets Rammed . | . . . . . . Kicked . | . . . . . . Crushed . | . . . . . . Highest Temperature 248 | . 213 125 . 248 52 Average Temperature 70 | . 106 59 . 125 18 Received Heat Transfer 765 | . . 9 . . 756 Siege Activations . | . . . . . . Robots Corrupted . | . . . . . . Combat Hostiles . | . . . . . . Parts Fried . | . . . . . . Impact Corruptions . | . . . . . . Robots Melted . | . . . . . . Combat Hostiles . | . . . . . . Parts Melted . | . . . . . . Heat Transferred 300 | . . . . . 300 Parts Sabotaged . | . . . . . . Parts Stolen . | . . . . . . Parts Stripped . | . . . . . . Power Chain Reactions . | . . . . . . Missiles Intercepted . | . . . . . . Alert | -11 -10 -10 -10 -9 -8 ------- Run | Scr Mat Min Exi Min Mat Peak Influence 185 | . . . . . 185 Initial . | . . . . . . Average 7 | . . . . . 82 Maximum Alert Level . | . . . . . . Low Security (%) 100 | 100 100 100 . 100 100 Level 1 . | . . . . . . Level 2 . | . . . . . . Level 3 . | . . . . . . Level 4 . | . . . . . . Level 5 . | . . . . . . High Security . | . . . . . . Max Security . | . . . . . . Squads Dispatched 5 | . 2 . . . 3 Investigation . | . . . . . . Extermination . | . . . . . . Reinforcement 4 | . 2 . . . 2 Assault . | . . . . . . Garrison 1 | . . . . . 1 Intercept . | . . . . . . Construction Impeded 1 | . . . . . 1 Haulers Reinforced . | . . . . . . Stealth | -11 -10 -10 -10 -9 -8 --------- Run | Scr Mat Min Exi Min Mat Distress Signals 1 | . 1 . . . . Communications Jammed . | . . . . . . Distress Signals . | . . . . . . Times Spotted 19 | . 1 2 . . 16 Peak Tracking Total 10 | . 1 2 . . 10 Tactical Retreats 1 | . . . . . 1 Traps | -11 -10 -10 -10 -9 -8 ------- Run | Scr Mat Min Exi Min Mat Traps Triggered 2 | . 2 . . . . Indirectly . | . . . . . . Trap Hack Attempts . | . . . . . . Triggered . | . . . . . . Disarmed . | . . . . . . Reprogrammed . | . . . . . . Reused . | . . . . . . Traps Extracted . | . . . . . . Installed . | . . . . . . Triggered . | . . . . . . Machines | -11 -10 -10 -10 -9 -8 ---------- Run | Scr Mat Min Exi Min Mat Machines Disabled 6 | . . . . . 6 Max in Single Turn 4 | . . . . . 4 Machines Sabotaged . | . . . . . . Garrisons Compromised . | . . . . . . Overloaded Fab Kills . | . . . . . . Fab Network Shutdowns . | . . . . . . Hacking | -11 -10 -10 -10 -9 -8 --------- Run | Scr Mat Min Exi Min Mat Machines Accessed . | . . . . . . Terminals . | . . . . . . Fabricators . | . . . . . . Repair Stations . | . . . . . . Recycling Units . | . . . . . . Scanalyzers . | . . . . . . Garrison Access . | . . . . . . Total Hacks . | . . . . . . Successful . | . . . . . . Failed . | . . . . . . Catastrophic . | . . . . . . Database Lockouts . | . . . . . . Manual . | . . . . . . Terminals . | . . . . . . Fabricators . | . . . . . . Repair Stations . | . . . . . . Recycling Units . | . . . . . . Scanalyzers . | . . . . . . Garrison Access . | . . . . . . Terminal Hacks . | . . . . . . Fabricator Hacks . | . . . . . . Repair Station Hacks . | . . . . . . Recycling Unit Hacks . | . . . . . . Scanalyzer . | . . . . . . Garrison Access Hacks . | . . . . . . Unauthorized Hacks . | . . . . . . Terminals . | . . . . . . Fabricators . | . . . . . . Repair Stations . | . . . . . . Recycling Units . | . . . . . . Scanalyzers . | . . . . . . Garrison Access . | . . . . . . Data Cores Recovered . | . . . . . . Used . | . . . . . . Hacking Detections . | . . . . . . Full Trace Events . | . . . . . . Feedback Events . | . . . . . . Feedback Blocked . | . . . . . . Robot Schematics Acquired . | . . . . . . Robots Built . | . . . . . . Matter . | . . . . . . Time . | . . . . . . Total Robot Build Rating . | . . . . . . Part Schematics Acquired . | . . . . . . Parts Built . | . . . . . . Matter . | . . . . . . Time . | . . . . . . Total Part Build Rating . | . . . . . . Parts Repaired . | . . . . . . Time . | . . . . . . Parts Recycled . | . . . . . . Recycled Matter . | . . . . . . Retrieved Matter . | . . . . . . Retrieved Components . | . . . . . . Parts Scanalyzed . | . . . . . . Part Schematics Acquired . | . . . . . . Parts Damaged . | . . . . . . Bothacking | -11 -10 -10 -10 -9 -8 ------------ Run | Scr Mat Min Exi Min Mat Used RIF Installer . | . . . . . . Robots Hacked . | . . . . . . Non-combat . | . . . . . . Combat . | . . . . . . Robot Hacks Applied . | . . . . . . Relay Couplers Released . | . . . . . . Robots Rewired . | . . . . . . Allies Hacked . | . . . . . . Hacks Repelled . | . . . . . . Allies | -11 -10 -10 -10 -9 -8 -------- Run | Scr Mat Min Exi Min Mat Total Allies . | . . . . . . Largest Group . | . . . . . . Highest-Rated Group . | . . . . . . Highest-Rated Ally . | . . . . . . Total Orders . | . . . . . . Ally Attacks . | . . . . . . Total Damage . | . . . . . . Kills . | . . . . . . Allies Corrupted . | . . . . . . Allies Melted . | . . . . . . Intel | -11 -10 -10 -10 -9 -8 ------- Run | Scr Mat Min Exi Min Mat Robot Analysis Total . | . . . . . . Derelict Logs Recovered 2 | . . . . 2 . Drone Launches . | . . . . . . Drone Recoveries . | . . . . . . Exploration | -11 -10 -10 -10 -9 -8 ------------- Run | Scr Mat Min Exi Min Mat Turns Passed 1517 | 86 176 238 417 501 99 Spaces Moved 812 | 54 99 146 226 251 36 Core 14 | 13 . . . . 1 Treads 793 | 41 99 146 226 251 30 Legs 5 | . . . . . 5 Wheels . | . . . . . . Hover . | . . . . . . Flight . | . . . . . . Fastest Speed 50 | 50 160 160 160 200 120 Average Speed 179 | 133 160 160 182 200 227 Slowest Speed 1400 | 160 160 160 200 200 1400 Overloaded Moves . | . . . . . . Propulsion Burnouts . | . . . . . . Robots Hopped . | . . . . . . Cave-ins Triggered . | . . . . . . Exploration Rate (%) 33 | 5 29 26 55 75 12 Regions Visited 5 Branch Regions 3 Pre-discovered Areas . | . . . . . . Known Exits Taken 1 | . . . . 1 . Unknown Exits Taken 4 | 1 1 1 1 . . Scrap Searched 2 | . . . . 2 . Spaces Dug . | . . . . . . Terrain Destroyed 13 | . . . . . 13 Melee . | . . . . . . Projectile . | . . . . . . AOE 13 | . . . . . 13 Terrain Rammed . | . . . . . . Walls Destroyed . | . . . . . . Machines Disabled . | . . . . . . Actions | -11 -10 -10 -10 -9 -8 --------- Run | Scr Mat Min Exi Min Mat Total 862 | 68 116 149 233 251 45 Wait 15 | . 15 . . . . Move 807 | 53 98 145 225 250 36 Hop . | . . . . . . Pick Up 15 | 9 1 1 3 1 . Fast Attach 1 | 1 . . . . . Attach 10 | 5 1 . 1 . 3 Detach . | . . . . . . Swap 3 | . 1 1 1 . . Drop 4 | . . 1 3 . . Fire 7 | . . 1 . . 6 Melee . | . . . . . . Ram . | . . . . . . Kick . | . . . . . . Crush . | . . . . . . Escape Stasis . | . . . . . . Rewire . | . . . . . . Trap . | . . . . . . Miscellaneous . | . . . . . . Route ------- -11/Scrapyard -10/Materials -10/Mines -10/Exiles (discovered 2 exits: [*Min x2]) -9/Mines -8/Materials (discovered 1 exit: Fac) History --------- Turn | Location | Event 6 | -11/Scrapyard | Discovered new exit (range 14) 87 | -11/Scrapyard | Entered Materials 205 | -10/Materials | Met 8R-AWN 248 | -10/Materials | Discovered new exit (range 10) 263 | -10/Materials | Entered Mines 265 | -10/Mines | Followed 8R-AWN into the Mines 335 | -10/Mines | Build established: Mutant 495 | -10/Mines | Discovered new exit (range 5) 501 | -10/Mines | Entered Exiles 524 | -10/Exiles | Discovered new exit (range 15) 545 | -10/Exiles | Welcomed by 8R-AWN 569 | -10/Exiles | Met EX-HEX 631 | -10/Exiles | Met EX-DEC 892 | -10/Exiles | Discovered new exit (range 14) 918 | -10/Exiles | Entered Mines 973 | -9/Mines | Build established: Hauler-Mutant 1230 | -9/Mines | Identified exit to Materials 1283 | -9/Mines | Received a Rocket Launcher from a helpful Derelict 1367 | -9/Mines | Learned 4 Materials zone layouts 1419 | -9/Mines | Entered Materials 1419 | -8/Materials | Evolved 4 slots: Propulsion x1, Utility x1, Weapon x2 1420 | -8/Materials | Identified exit to Factory 1470 | -8/Materials | Garrison activated, responded to threat 1508 | -8/Materials | Core integrity fell below 50% 1514 | -8/Materials | Core integrity fell below 20% 1518 | -8/Materials | Destroyed by G-47 Trooper with Particle Gun Last Messages --------------- local area. 01477_ U-05 Engineer lays Concrete. 01477_ Atomic Centrifuge disabled. 01478_ U-05 Engineer lays Concrete. 01479_ Rocket Launcher destroyed. 01479_ U-05 Engineer lays Concrete. 01484_ U-05 Engineer builds a Wall. 01484_ Lgt. Treads destroyed. 01489_ U-05 Engineer lays Concrete. 01490_ Lgt. Assault Rifle destroyed. 01491_ U-05 Engineer builds a Wall. 01496_ U-05 Engineer lays Concrete. 01496_ Lgt. Treads destroyed. 01497_ U-05 Engineer lays Concrete. 01505_ Humpback destroyed. 01505_ Lgt. Ion Engine destroyed. 01507_ U-05 Engineer destroyed. 01512_ K-01 Serf collects debris. 01514_ Aluminum Leg destroyed. 01516_ K-01 Serf collects debris. Map ----- +----------------------------------------------------+ | ?????????????????????????????????????????????? | | ?????????????????????????????????????????????? | | ?????????????????????????????????????????????? | | ?????????????????????????????????????????????? | | ?????????????????????????????????????????????? | | ?????????????????????????????????????????????? | | ?????????????????????????????????????????????? | | ?????????????????????????????????????????????? | | ?????????????????????????????????????????????? | | ?????????????????????????????????????????????? | | ?????????????????????????????????????????????? | | ?????????????????????????????????????????????? | | ?????????????????????????????????????????????? | | ?????????????????????????????????????????????? | | ?????????????????????????????????????????????? | | ?????????????????????????????????????????????? | | ?????????????????????????????????????????????? | | ?????????????????????????# """ # # # | | ?????????????????????????# # # | | ?????????????????????????# ######### | | ???########??????????????# #??????# | | ???# #?????########?# """ #??????# | | ???# #?????#==!!]]#?# "R ##?????# | | ???# """" #?????#==!!]]#?# """ #?????# | | ???# """" #?????# #?# ##?????# | | ???# """" #?????# @##?####+####??????### | | ???# #?????# ####### #???????##### | | ########+###????# #???????# | | # # #????# #???????# | | # # ###### #???????# | | # + ###+####????# | | # # ### # #????# #### | | # # ### # """ #????# #??? | | ######## ####;= Ygg # "" #????#####??? | | ??######+#### % g! # " #???????????? | | ??# # = g g* #???????????? | | ??# ; = #???????????? | | ??# """ ; %= #???????????? | | ??# """"" " k " #?########### | | ??# """"" " #?# # | | ??# """"" " # """ #?# # | | ??# """ # " # G" #?# """ # | | ????????????# # """ #???????????? | | ????????????# #? ????????????? | | ????????????# ######?#####????????????? | | ??????????### #???????????????????????? | | ??????????#"" T #???????????????????????? | | ??????????#"Y % #???????????????????????? | | ??????????#"" #???????????????????????? | | ??????????### """ #???????????????????????? | +----------------------------------------------------+ Best States ------------- Heat Dissipation 31 Energy Generation 10 Energy Capacity 125 Matter Stores 300 Matter Capacity 300 Sight Range 16 Terrain Scan Density 10 Armor Coverage 150 Evasion (%) 50 Recoil Reduction 2 Item Schematics ----------------- None Robot Schematics ------------------ None Fabricated ------------ Nothing Alien Tech Used ----------------- None Achievements -------------- None Challenges ------------ None Game ------ Seed HellfireCooledScreen Manual? 0 Play Time 00:09:41 Cumulative 9.9 hours Start 2020.09.30 @ 01:58:12 End 2020.09.30 @ 02:06:47 Sessions 1 Manual Loads 0 Difficulty Rogue Special Mode None Game No. 45 Rogue 45 Adventurer 0 Explorer 0 Win Type - Total 0 Types 0/0/0/0/0/0/0/0/0 Lore% 3 Gallery% 16 Achievement% 10 Wizard Run 0 Options --------- ASCII 0 Keyboard 0 Movement Mouse Keybinds 0 Fullscreen 1 Font 18/SmallcapsGlow Map View 76x50 Tactical HUD 1 Map Filters NONE Filters NONE Steam 1 RUN: 60e9bdf9-58e9-454a-803b-197d4fbb5695